[Event "*** Titled Tuesday Blitz"]
[Site "Chess.com"]
[Date "2019.06.04"]
[Round "8"]
[White "Tacticalon"]
[Black "Angry_Twin"]
[Result "1-0"]
[WhiteElo "2731"]
[BlackElo "2800"]
[TimeControl "180+2"]
[EndTime "14:49:46 PDT"]
[Termination "Tacticalon won by resignation"]

1. d4 {[%clk 0:03:01.9]} 1... Nf6 {[%clk 0:03:00.3]} 2. c4 {[%clk 0:03:02.9]}
2... g6 {[%clk 0:03:01.8]} 3. Nc3 {[%clk 0:03:03.9]} 3... d5 {[%clk 0:03:03.3]}
4. cxd5 {[%clk 0:03:04.3]} 4... Nxd5 {[%clk 0:03:04.8]} 5. e4 {[%clk 0:03:03.1]}
5... Nxc3 {[%clk 0:03:05.7]} 6. bxc3 {[%clk 0:03:05]} 6... Bg7 {[%clk
0:03:07.2]} 7. Bc4 {[%clk 0:03:00.8]} 7... c5 {[%clk 0:03:07.9]} 8. Ne2 {[%clk
0:03:01.3]} 8... O-O {[%clk 0:03:08.5]} 9. Be3 {[%clk 0:02:56.7]} 9... Nc6
{[%clk 0:03:09.5]} 10. Rc1 {[%clk 0:02:48.1]} 10... Bd7 {[%clk 0:03:05.5]} 11.
O-O {[%clk 0:02:32.8]} 11... Rc8 {[%clk 0:03:06.4]} 12. Qd2 {[%clk 0:02:29.5]}
12... Na5 {[%clk 0:03:05.6]} 13. Bd3 {[%clk 0:02:27.1]} 13... e5 {[%clk
0:03:06.6]} 14. f4 {[%clk 0:02:20.7]} 14... exd4 {[%clk 0:02:58.2]} 15. cxd4
{[%clk 0:02:21]} 15... cxd4 {[%clk 0:02:59.1]} 16. Nxd4 {[%clk 0:02:18.6]} 16...
Rxc1 {[%clk 0:02:52.2]} 17. Rxc1 {[%clk 0:02:16.1]} 17... Nc6 {[%clk 0:02:53.1]}
18. Nb5 {[%clk 0:02:06.4]} 18... Be6 {[%clk 0:02:37.7]} 19. Bc5 {[%clk
0:02:01.9]} 19... Re8 {[%clk 0:02:35.4]} 20. Nd6 {[%clk 0:01:54.3]} 20... Bd4+
{[%clk 0:02:35.8]} 21. Bxd4 {[%clk 0:01:54.4]} 21... Qxd6 {[%clk 0:02:35.8]} 22.
Ba1 {[%clk 0:01:43.5]} 22... f6 {[%clk 0:02:06.4]} 23. Bxf6 {[%clk 0:01:36.4]}
23... Nb4 {[%clk 0:01:59.9]} 24. Rc3 {[%clk 0:01:19.3]} 24... Nxa2 {[%clk
0:01:58.9]} 25. Rc4 {[%clk 0:01:05.2]} 25... a5 {[%clk 0:01:26.2]} 26. Be5
{[%clk 0:00:56.2]} 26... Qb6+ {[%clk 0:01:19.4]} 27. Bd4 {[%clk 0:00:54.6]}
27... Qb3 {[%clk 0:00:38.5]} 28. Rc7 {[%clk 0:00:53.6]} 28... Bf7 {[%clk
0:00:38.7]} 29. f5 {[%clk 0:00:46.9]} 29... Nb4 {[%clk 0:00:39.6]} 30. Rc3
{[%clk 0:00:37.5]} 30... Qa2 {[%clk 0:00:38]} 31. Qh6 {[%clk 0:00:33.9]} 31...
Qa1+ {[%clk 0:00:17.9]} 32. Bf1 {[%clk 0:00:33.9]} 1-0

[Event "*** Titled Tuesday Blitz"]
[Site "Chess.com"]
[Date "2019.06.04"]
[Round "8"]
[White "Hikaru"]
[Black "severomorskij"]
[Result "1-0"]
[WhiteElo "3205"]
[BlackElo "2804"]
[TimeControl "180+2"]
[EndTime "14:49:52 PDT"]
[Termination "Hikaru won by resignation"]

1. Nf3 {[%clk 0:03:01.9]} 1... Nf6 {[%clk 0:03:00.4]} 2. b3 {[%clk 0:03:02.6]}
2... d5 {[%clk 0:02:53.5]} 3. Bb2 {[%clk 0:03:03.7]} 3... c5 {[%clk 0:02:54.6]}
4. e3 {[%clk 0:03:04.7]} 4... g6 {[%clk 0:02:55.7]} 5. c4 {[%clk 0:03:03.9]}
5... dxc4 {[%clk 0:02:53.2]} 6. Bxc4 {[%clk 0:03:04.4]} 6... Bg7 {[%clk
0:02:54.2]} 7. d4 {[%clk 0:03:05]} 7... cxd4 {[%clk 0:02:52.6]} 8. Nxd4 {[%clk
0:03:05.9]} 8... O-O {[%clk 0:02:53.4]} 9. O-O {[%clk 0:03:06.8]} 9... Bd7
{[%clk 0:02:54.6]} 10. Nd2 {[%clk 0:02:59.5]} 10... Nc6 {[%clk 0:02:55.7]} 11.
N2f3 {[%clk 0:03:01.2]} 11... Nxd4 {[%clk 0:02:54.7]} 12. Bxd4 {[%clk
0:02:59.9]} 12... b5 {[%clk 0:02:36.1]} 13. Be2 {[%clk 0:02:57.7]} 13... a6
{[%clk 0:02:32]} 14. Ne5 {[%clk 0:02:39.2]} 14... Be6 {[%clk 0:02:28.2]} 15. Nc6
{[%clk 0:02:36.6]} 15... Qd7 {[%clk 0:02:16]} 16. Bf3 {[%clk 0:02:37.3]} 16...
Rac8 {[%clk 0:02:05.4]} 17. Rc1 {[%clk 0:02:37.9]} 17... Nd5 {[%clk 0:01:42.6]}
18. Bxd5 {[%clk 0:02:16.3]} 18... Bxd5 {[%clk 0:01:42.1]} 19. Bxg7 {[%clk
0:02:17.5]} 19... Kxg7 {[%clk 0:01:40.4]} 20. Nxe7 {[%clk 0:02:16]} 20... Rxc1
{[%clk 0:01:38.4]} 21. Qd4+ {[%clk 0:02:16.2]} 21... f6 {[%clk 0:01:10.8]} 22.
Rxc1 {[%clk 0:02:16.7]} 22... Qxe7 {[%clk 0:01:12]} 23. Qxd5 {[%clk 0:02:17.2]}
23... Rd8 {[%clk 0:01:13.2]} 24. Qc6 {[%clk 0:02:05.2]} 24... Rd6 {[%clk
0:01:08.3]} 25. Qc8 {[%clk 0:01:59.7]} 25... Qd7 {[%clk 0:01:01.1]} 26. Qxd7+
{[%clk 0:01:58.4]} 26... Rxd7 {[%clk 0:01:01.9]} 27. g4 {[%clk 0:01:59.1]} 27...
Rd2 {[%clk 0:00:38.3]} 28. Rc7+ {[%clk 0:01:27.6]} 28... Kh6 {[%clk 0:00:39.3]}
29. Rc6 {[%clk 0:01:29.3]} 29... Kg5 {[%clk 0:00:23.4]} 30. Rxa6 {[%clk
0:01:26.7]} 30... Kxg4 {[%clk 0:00:23.9]} 31. Rxf6 {[%clk 0:01:17.3]} 31... Rxa2
{[%clk 0:00:22.8]} 32. Kg2 {[%clk 0:01:17.2]} 32... Ra3 {[%clk 0:00:13.3]} 33.
Rf4+ {[%clk 0:01:18]} 33... Kg5 {[%clk 0:00:14.7]} 34. Rb4 {[%clk 0:01:19.1]}
34... Ra5 {[%clk 0:00:15.9]} 35. Rd4 {[%clk 0:01:20.8]} 35... Kf5 {[%clk
0:00:14.4]} 36. b4 {[%clk 0:01:21.6]} 36... Ra2 {[%clk 0:00:14.3]} 37. Rd5+
{[%clk 0:01:22.3]} 37... Kg4 {[%clk 0:00:13.3]} 38. Rxb5 {[%clk 0:01:24.2]}
38... Rb2 {[%clk 0:00:14.5]} 39. h3+ {[%clk 0:01:22.8]} 39... Kh4 {[%clk
0:00:13.8]} 40. Rb8 {[%clk 0:01:24.7]} 40... h5 {[%clk 0:00:13.1]} 41. b5 {[%clk
0:01:26.3]} 41... g5 {[%clk 0:00:14.4]} 42. b6 {[%clk 0:01:27.1]} 42... Rb5
{[%clk 0:00:07.8]} 43. b7 {[%clk 0:01:27.9]} 43... Rb6 {[%clk 0:00:08.5]} 44. e4
{[%clk 0:01:29]} 44... Rb5 {[%clk 0:00:04.5]} 45. e5 {[%clk 0:01:30.2]} 1-0

[Event "*** Titled Tuesday Blitz"]
[Site "Chess.com"]
[Date "2019.06.04"]
[Round "8"]
[White "Siemba"]
[Black "CookiesAndIceCream"]
[Result "0-1"]
[WhiteElo "2089"]
[BlackElo "2370"]
[TimeControl "180+2"]
[EndTime "14:49:52 PDT"]
[Termination "CookiesAndIceCream won by checkmate"]

1. e4 {[%clk 0:02:48.9]} 1... e6 {[%clk 0:03:00.4]} 2. Qe2 {[%clk 0:02:48.3]}
2... Nc6 {[%clk 0:02:58.2]} 3. Nf3 {[%clk 0:02:46.8]} 3... e5 {[%clk 0:02:58.7]}
4. Qd1 {[%clk 0:02:28]} 4... Nf6 {[%clk 0:02:58.6]} 5. Nc3 {[%clk 0:02:18.6]}
5... Bb4 {[%clk 0:02:58]} 6. Bc4 {[%clk 0:02:16]} 6... O-O {[%clk 0:02:58]} 7.
d3 {[%clk 0:02:16.2]} 7... d5 {[%clk 0:02:56.5]} 8. exd5 {[%clk 0:02:15.7]} 8...
Nxd5 {[%clk 0:02:56.8]} 9. Bd2 {[%clk 0:02:16.1]} 9... Nf4 {[%clk 0:02:57.7]}
10. Bxf4 {[%clk 0:02:10.4]} 10... exf4 {[%clk 0:02:59.6]} 11. O-O {[%clk
0:02:09.9]} 11... Bg4 {[%clk 0:03:00.4]} 12. h3 {[%clk 0:02:09.6]} 12... Bh5
{[%clk 0:03:00]} 13. Ne4 {[%clk 0:02:08.8]} 13... Ne5 {[%clk 0:02:55.1]} 14. Kh2
{[%clk 0:01:54.1]} 14... Re8 {[%clk 0:01:31.6]} 15. Nxe5 {[%clk 0:01:45.2]}
15... Bxd1 {[%clk 0:01:28.2]} 16. Nxf7 {[%clk 0:01:45.7]} 16... Qe7 {[%clk
0:01:15.2]} 17. Raxd1 {[%clk 0:01:17.4]} 17... Kf8 {[%clk 0:00:51.5]} 18. Neg5
{[%clk 0:01:12.6]} 18... h6 {[%clk 0:00:51.8]} 19. Nh8 {[%clk 0:00:48.9]} 19...
Qxg5 {[%clk 0:00:33.9]} 20. g3 {[%clk 0:00:17]} 20... fxg3+ {[%clk 0:00:32.9]}
21. fxg3+ {[%clk 0:00:18.9]} 21... Ke7 {[%clk 0:00:33.6]} 22. Nf7 {[%clk
0:00:18.4]} 22... Qh5 {[%clk 0:00:21.5]} 23. c3 {[%clk 0:00:20.3]} 23... Bd6
{[%clk 0:00:20]} 24. Rde1+ {[%clk 0:00:20.7]} 24... Kd7 {[%clk 0:00:20.4]} 25.
Nxd6 {[%clk 0:00:20.2]} 25... cxd6 {[%clk 0:00:21]} 26. Bb5+ {[%clk 0:00:20.7]}
26... Kc7 {[%clk 0:00:20.6]} 27. g4 {[%clk 0:00:20.4]} 27... Rxe1 {[%clk
0:00:18.9]} 28. gxh5 {[%clk 0:00:17.3]} 28... Rxf1 {[%clk 0:00:18.6]} 29. d4
{[%clk 0:00:19.2]} 29... Rf2+ {[%clk 0:00:19.8]} 30. Kg3 {[%clk 0:00:18.3]}
30... Rxb2 {[%clk 0:00:21.7]} 31. Bc4 {[%clk 0:00:20.1]} 31... Rf8 {[%clk
0:00:23.5]} 32. Kg4 {[%clk 0:00:19.8]} 32... Rg2+ {[%clk 0:00:22.9]} 33. Kh4
{[%clk 0:00:21.1]} 33... Rf4# {[%clk 0:00:24]} 0-1

[Event "*** Titled Tuesday Blitz"]
[Site "Chess.com"]
[Date "2019.06.04"]
[Round "8"]
[White "Keithonsky"]
[Black "MasterKroket"]
[Result "1-0"]
[WhiteElo "2508"]
[BlackElo "2340"]
[TimeControl "180+2"]
[EndTime "14:49:58 PDT"]
[Termination "Keithonsky won by resignation"]

1. d4 {[%clk 0:03:01.9]} 1... Nf6 {[%clk 0:03:00.4]} 2. c4 {[%clk 0:03:03.4]}
2... e6 {[%clk 0:03:01.7]} 3. Nf3 {[%clk 0:03:03.7]} 3... b6 {[%clk 0:03:01.8]}
4. g3 {[%clk 0:03:05]} 4... Bb7 {[%clk 0:03:03.2]} 5. Bg2 {[%clk 0:03:05.4]}
5... Be7 {[%clk 0:03:04.5]} 6. O-O {[%clk 0:03:06.3]} 6... O-O {[%clk
0:03:05.4]} 7. Nc3 {[%clk 0:03:08]} 7... Ne4 {[%clk 0:03:05.9]} 8. Qc2 {[%clk
0:03:09.7]} 8... Nxc3 {[%clk 0:03:06.9]} 9. Qxc3 {[%clk 0:03:11.6]} 9... f5
{[%clk 0:03:08]} 10. Rd1 {[%clk 0:03:12.1]} 10... Bf6 {[%clk 0:03:09]} 11. Qb3
{[%clk 0:03:06.6]} 11... Nc6 {[%clk 0:03:05.1]} 12. d5 {[%clk 0:02:57.5]} 12...
Na5 {[%clk 0:03:04.7]} 13. Qc2 {[%clk 0:02:59]} 13... exd5 {[%clk 0:02:52.6]}
14. cxd5 {[%clk 0:03:00.9]} 14... Qe7 {[%clk 0:02:30.3]} 15. Bf4 {[%clk
0:02:59.9]} 15... Ba6 {[%clk 0:02:16.3]} 16. e3 {[%clk 0:02:52.3]} 16... d6
{[%clk 0:02:02.4]} 17. Nd4 {[%clk 0:02:47.2]} 17... Bc8 {[%clk 0:01:48.8]} 18.
b4 {[%clk 0:02:43.8]} 18... Nb7 {[%clk 0:01:44.7]} 19. Rac1 {[%clk 0:02:45.3]}
19... g5 {[%clk 0:01:42.5]} 20. Ne6 {[%clk 0:02:35.4]} 20... gxf4 {[%clk
0:01:34.8]} 21. Nxf8 {[%clk 0:02:35.6]} 21... Kxf8 {[%clk 0:01:33.3]} 22. gxf4
{[%clk 0:02:31.6]} 22... a5 {[%clk 0:01:28.4]} 23. a3 {[%clk 0:02:32.7]} 23...
axb4 {[%clk 0:01:29.2]} 24. axb4 {[%clk 0:02:34.6]} 24... Qd7 {[%clk 0:01:02]}
25. Qxc7 {[%clk 0:02:27.8]} 25... Qxc7 {[%clk 0:00:42.1]} 26. Rxc7 {[%clk
0:02:28.8]} 26... Nd8 {[%clk 0:00:43.8]} 27. Rdc1 {[%clk 0:02:21.7]} 27... Ba6
{[%clk 0:00:44.1]} 28. Rxh7 {[%clk 0:02:16.4]} 28... Be2 {[%clk 0:00:37.2]} 29.
Bh3 {[%clk 0:02:17.2]} 29... Bb2 {[%clk 0:00:35.6]} 30. Rb1 {[%clk 0:02:11.8]}
30... Bg7 {[%clk 0:00:24.4]} 31. Bxf5 {[%clk 0:02:10.3]} 31... Ra2 {[%clk
0:00:24]} 32. Rc1 {[%clk 0:02:09.5]} 32... Bf3 {[%clk 0:00:22.1]} 33. Rh3 {[%clk
0:02:01.5]} 33... Bxd5 {[%clk 0:00:22.3]} 34. e4 {[%clk 0:02:01.8]} 34... Bf7
{[%clk 0:00:19.5]} 35. Rc8 {[%clk 0:02:02.1]} 35... Bf6 {[%clk 0:00:18.9]} 36.
Rh6 {[%clk 0:01:57.8]} 36... Be7 {[%clk 0:00:14.4]} 37. Rh8+ {[%clk 0:01:56.2]}
37... Kg7 {[%clk 0:00:10.5]} 38. Rhxd8 {[%clk 0:01:56.9]} 38... Bxd8 {[%clk
0:00:11.2]} 39. Rxd8 {[%clk 0:01:58.8]} 39... Bh5 {[%clk 0:00:12.4]} 40. Kg2
{[%clk 0:01:58.5]} 40... Ra3 {[%clk 0:00:12.3]} 41. h3 {[%clk 0:01:54.4]} 41...
Bf3+ {[%clk 0:00:13.2]} 42. Kh2 {[%clk 0:01:55.8]} 42... Ra1 {[%clk 0:00:11.6]}
43. Rd7+ {[%clk 0:01:57.2]} 43... Kf8 {[%clk 0:00:12.1]} 44. Rxd6 {[%clk
0:01:58.5]} 44... b5 {[%clk 0:00:13.3]} 45. e5 {[%clk 0:01:59]} 45... Ba8 {[%clk
0:00:08.3]} 46. Rd8+ {[%clk 0:01:59.4]} 46... Ke7 {[%clk 0:00:09.4]} 47. Rd7+
{[%clk 0:02:01]} 47... Kf8 {[%clk 0:00:10.4]} 48. Be6 {[%clk 0:02:01.7]} 48...
Rh1+ {[%clk 0:00:10.2]} 49. Kg3 {[%clk 0:02:02.9]} 49... Rg1+ {[%clk 0:00:11.7]}
50. Kh4 {[%clk 0:02:04.6]} 50... Bf3 {[%clk 0:00:12.2]} 51. f5 {[%clk
0:02:05.4]} 51... Be4 {[%clk 0:00:11]} 52. f6 {[%clk 0:02:05.7]} 52... Bg6
{[%clk 0:00:12.1]} 53. Rd8+ {[%clk 0:02:06.9]} 53... Be8 {[%clk 0:00:13.4]} 54.
f7 {[%clk 0:02:08.3]} 54... Kg7 {[%clk 0:00:12.1]} 55. fxe8=Q {[%clk 0:02:07.2]}
55... Rg5 {[%clk 0:00:13]} 56. Kxg5 {[%clk 0:02:05.3]} 1-0

[Event "*** Titled Tuesday Blitz"]
[Site "Chess.com"]
[Date "2019.06.04"]
[Round "8"]
[White "ethylalcohol"]
[Black "PawnEatingZombie"]
[Result "0-1"]
[WhiteElo "2020"]
[BlackElo "2146"]
[TimeControl "180+2"]
[EndTime "14:50:04 PDT"]
[Termination "PawnEatingZombie won on time"]

1. d4 {[%clk 0:03:01.9]} 1... d5 {[%clk 0:03:00.6]} 2. Nf3 {[%clk 0:03:02.8]}
2... e6 {[%clk 0:03:01.7]} 3. Bf4 {[%clk 0:03:03.4]} 3... Bd6 {[%clk 0:03:01]}
4. Bg3 {[%clk 0:03:03.3]} 4... Nf6 {[%clk 0:02:58.7]} 5. Nbd2 {[%clk 0:03:00.2]}
5... c5 {[%clk 0:02:58.4]} 6. e3 {[%clk 0:03:00.5]} 6... Qc7 {[%clk 0:02:57.3]}
7. c3 {[%clk 0:02:54.6]} 7... Nbd7 {[%clk 0:02:58.1]} 8. Be2 {[%clk 0:02:52]}
8... b6 {[%clk 0:02:59.3]} 9. Rc1 {[%clk 0:02:47.6]} 9... O-O {[%clk 0:03:00]}
10. O-O {[%clk 0:02:47.8]} 10... Bb7 {[%clk 0:03:00.9]} 11. Qc2 {[%clk
0:02:33.1]} 11... Rfe8 {[%clk 0:03:01.3]} 12. Rfe1 {[%clk 0:02:28]} 12... h6
{[%clk 0:03:01.6]} 13. dxc5 {[%clk 0:02:18.2]} 13... Nxc5 {[%clk 0:02:57.4]} 14.
c4 {[%clk 0:02:09]} 14... Rac8 {[%clk 0:02:44.5]} 15. Red1 {[%clk 0:02:01.6]}
15... Bxg3 {[%clk 0:02:42.5]} 16. hxg3 {[%clk 0:01:59.5]} 16... Qb8 {[%clk
0:02:39.9]} 17. Qb1 {[%clk 0:01:52]} 17... Red8 {[%clk 0:02:38]} 18. Nd4 {[%clk
0:01:47.4]} 18... dxc4 {[%clk 0:02:26.7]} 19. Nxc4 {[%clk 0:01:45.8]} 19... Nd5
{[%clk 0:02:28.2]} 20. Bf3 {[%clk 0:01:44.9]} 20... Ba6 {[%clk 0:02:18.1]} 21.
b4 {[%clk 0:01:33.9]} 21... Na4 {[%clk 0:02:05.6]} 22. b5 {[%clk 0:01:18.4]}
22... Nac3 {[%clk 0:01:57.6]} 23. Qb3 {[%clk 0:01:18.6]} 23... Nxd1 {[%clk
0:01:56.8]} 24. bxa6 {[%clk 0:01:18.4]} 24... N1c3 {[%clk 0:01:50.2]} 25. e4
{[%clk 0:00:57.8]} 25... b5 {[%clk 0:00:59.4]} 26. exd5 {[%clk 0:00:47.1]} 26...
exd5 {[%clk 0:00:54.2]} 27. Qxc3 {[%clk 0:00:15.5]} 27... Rxc4 {[%clk
0:00:45.2]} 28. Qd2 {[%clk 0:00:16.4]} 28... Qb6 {[%clk 0:00:34.9]} 29. Nf5
{[%clk 0:00:13.4]} 29... d4 {[%clk 0:00:28.6]} 30. Ne7+ {[%clk 0:00:10.5]} 30...
Kf8 {[%clk 0:00:28.1]} 31. Nd5 {[%clk 0:00:10.4]} 31... Qc5 {[%clk 0:00:28.1]}
32. Rxc4 {[%clk 0:00:08]} 32... bxc4 {[%clk 0:00:29.1]} 33. Qf4 {[%clk
0:00:07.6]} 33... c3 {[%clk 0:00:25.5]} 0-1

[Event "*** Titled Tuesday Blitz"]
[Site "Chess.com"]
[Date "2019.06.04"]
[Round "8"]
[White "mikhaillushenkov"]
[Black "Andrjywa"]
[Result "1-0"]
[WhiteElo "2720"]
[BlackElo "2518"]
[TimeControl "180+2"]
[EndTime "14:50:10 PDT"]
[Termination "mikhaillushenkov won by resignation"]

1. Nf3 {[%clk 0:03:01.9]} 1... Nf6 {[%clk 0:02:41]} 2. c4 {[%clk 0:03:02.2]}
2... e6 {[%clk 0:02:40.1]} 3. Nc3 {[%clk 0:03:02.5]} 3... Bb4 {[%clk 0:02:38.9]}
4. d4 {[%clk 0:02:59.9]} 4... d5 {[%clk 0:02:35.7]} 5. cxd5 {[%clk 0:03:00]}
5... exd5 {[%clk 0:02:35.4]} 6. Qa4+ {[%clk 0:03:00.9]} 6... Nc6 {[%clk
0:02:35.9]} 7. Bg5 {[%clk 0:03:01.6]} 7... Bd7 {[%clk 0:02:31.9]} 8. Rc1 {[%clk
0:02:46.4]} 8... O-O {[%clk 0:02:32.1]} 9. e3 {[%clk 0:02:40.8]} 9... h6 {[%clk
0:02:32]} 10. Bxf6 {[%clk 0:02:41.5]} 10... Qxf6 {[%clk 0:02:32.5]} 11. Be2
{[%clk 0:02:39.6]} 11... Bxc3+ {[%clk 0:02:27]} 12. Rxc3 {[%clk 0:02:36.5]}
12... Qg6 {[%clk 0:02:08.6]} 13. O-O {[%clk 0:01:57.1]} 13... Bh3 {[%clk
0:02:08.5]} 14. Ne1 {[%clk 0:01:57.7]} 14... Bd7 {[%clk 0:02:01.4]} 15. Qc2
{[%clk 0:01:54.4]} 15... Bf5 {[%clk 0:02:00.2]} 16. Qc1 {[%clk 0:01:51.4]} 16...
Rfe8 {[%clk 0:01:58.7]} 17. Bb5 {[%clk 0:01:50.9]} 17... Bd7 {[%clk 0:01:59.4]}
18. Nf3 {[%clk 0:01:35.5]} 18... Bh3 {[%clk 0:01:53.1]} 19. Ne1 {[%clk
0:01:33.9]} 19... Bd7 {[%clk 0:01:54]} 20. Bxc6 {[%clk 0:01:28.8]} 20... Bxc6
{[%clk 0:01:54]} 21. Nf3 {[%clk 0:01:30.4]} 21... f6 {[%clk 0:01:49]} 22. Re1
{[%clk 0:01:21.9]} 22... Qe4 {[%clk 0:01:48.1]} 23. Qc2 {[%clk 0:01:21.3]} 23...
Qxc2 {[%clk 0:01:40.7]} 24. Rxc2 {[%clk 0:01:23.2]} 24... Re7 {[%clk 0:01:42.2]}
25. Rec1 {[%clk 0:01:24]} 25... Kf8 {[%clk 0:01:40.6]} 26. Nd2 {[%clk
0:01:22.3]} 26... Ke8 {[%clk 0:01:41.5]} 27. Nb3 {[%clk 0:01:23.2]} 27... Ba4
{[%clk 0:01:27.3]} 28. Rxc7 {[%clk 0:01:22.3]} 28... Bxb3 {[%clk 0:01:28.1]} 29.
axb3 {[%clk 0:01:19.4]} 29... Rb8 {[%clk 0:01:26.5]} 30. Kf1 {[%clk 0:01:15.9]}
30... Rd7 {[%clk 0:01:23.2]} 31. Ke2 {[%clk 0:01:12.2]} 31... Kd8 {[%clk
0:01:23.7]} 32. Rxd7+ {[%clk 0:01:13.2]} 32... Kxd7 {[%clk 0:01:25.6]} 33. h4
{[%clk 0:01:12.7]} 33... h5 {[%clk 0:01:24.1]} 34. Rc5 {[%clk 0:01:12.1]} 34...
Kd6 {[%clk 0:01:24.7]} 35. Kd3 {[%clk 0:01:13.2]} 35... b6 {[%clk 0:01:25.7]}
36. Rc1 {[%clk 0:01:13.5]} 36... Re8 {[%clk 0:01:24.7]} 37. b4 {[%clk
0:01:13.2]} 37... a6 {[%clk 0:01:11]} 38. Ra1 {[%clk 0:01:12.1]} 38... Ra8
{[%clk 0:01:11.4]} 39. f3 {[%clk 0:01:13.3]} 39... Ra7 {[%clk 0:01:11.8]} 40. b5
{[%clk 0:01:09.6]} 40... a5 {[%clk 0:01:11.7]} 41. Rc1 {[%clk 0:01:10.5]} 41...
Rc7 {[%clk 0:01:00.8]} 42. Rxc7 {[%clk 0:01:09.4]} 42... Kxc7 {[%clk 0:01:02.7]}
43. e4 {[%clk 0:01:10.6]} 43... Kd6 {[%clk 0:01:03.3]} 44. b3 {[%clk 0:01:07.4]}
44... Ke6 {[%clk 0:01:04]} 45. Ke3 {[%clk 0:01:08.3]} 45... g6 {[%clk 0:01:01]}
46. g4 {[%clk 0:01:05]} 46... Kd6 {[%clk 0:00:57.2]} 47. Kf4 {[%clk 0:00:58.2]}
47... Ke6 {[%clk 0:00:57.2]} 48. g5 {[%clk 0:00:41.6]} 1-0

[Event "*** Titled Tuesday Blitz"]
[Site "Chess.com"]
[Date "2019.06.04"]
[Round "8"]
[White "mouseWLZ"]
[Black "iturrizaga"]
[Result "1-0"]
[WhiteElo "2785"]
[BlackElo "2922"]
[TimeControl "180+2"]
[EndTime "14:50:15 PDT"]
[Termination "mouseWLZ won by resignation"]

1. d4 {[%clk 0:03:01.9]} 1... Nf6 {[%clk 0:03:00.4]} 2. Bf4 {[%clk 0:03:02.3]}
2... b6 {[%clk 0:03:01.4]} 3. e3 {[%clk 0:03:01.7]} 3... Bb7 {[%clk 0:03:02.8]}
4. Nf3 {[%clk 0:03:02.7]} 4... g6 {[%clk 0:03:02.8]} 5. Be2 {[%clk 0:03:02.9]}
5... Bg7 {[%clk 0:03:04.4]} 6. h3 {[%clk 0:03:03.9]} 6... O-O {[%clk 0:03:05.8]}
7. O-O {[%clk 0:03:04.8]} 7... c5 {[%clk 0:03:07.2]} 8. c3 {[%clk 0:03:05.4]}
8... d6 {[%clk 0:03:08.2]} 9. Nbd2 {[%clk 0:03:05.1]} 9... Nbd7 {[%clk
0:03:08.8]} 10. a4 {[%clk 0:03:04.4]} 10... a6 {[%clk 0:03:10.2]} 11. Bh2 {[%clk
0:03:02.7]} 11... Ra7 {[%clk 0:03:11.5]} 12. Re1 {[%clk 0:03:03.3]} 12... Qa8
{[%clk 0:03:12.2]} 13. b4 {[%clk 0:03:01.6]} 13... Rc8 {[%clk 0:03:02.9]} 14.
Qb3 {[%clk 0:02:58.9]} 14... cxb4 {[%clk 0:03:01.2]} 15. cxb4 {[%clk 0:02:58.3]}
15... Bd5 {[%clk 0:03:02.6]} 16. Qb2 {[%clk 0:02:56.2]} 16... Rac7 {[%clk
0:03:02.7]} 17. Rac1 {[%clk 0:02:55.7]} 17... Bc6 {[%clk 0:02:46.5]} 18. b5
{[%clk 0:02:37.5]} 18... axb5 {[%clk 0:02:38.2]} 19. Bxb5 {[%clk 0:02:37.9]}
19... Bxb5 {[%clk 0:02:34.2]} 20. axb5 {[%clk 0:02:36.6]} 20... Rxc1 {[%clk
0:02:30.8]} 21. Rxc1 {[%clk 0:02:37.3]} 21... Rxc1+ {[%clk 0:02:31.6]} 22. Qxc1
{[%clk 0:02:39.2]} 22... h6 {[%clk 0:02:27.3]} 23. g4 {[%clk 0:02:39.2]} 23...
Qa4 {[%clk 0:02:19.5]} 24. Qc6 {[%clk 0:02:26.8]} 24... Qa2 {[%clk 0:02:01.9]}
25. Kg2 {[%clk 0:02:17.6]} 25... Qe6 {[%clk 0:01:32.3]} 26. e4 {[%clk
0:02:13.9]} 26... d5 {[%clk 0:01:32.2]} 27. e5 {[%clk 0:02:08.9]} 27... Ne8
{[%clk 0:01:29.8]} 28. Qc8 {[%clk 0:01:57.5]} 28... Kf8 {[%clk 0:01:23.9]} 29.
Bg3 {[%clk 0:01:52.9]} 29... g5 {[%clk 0:01:10.7]} 30. Nf1 {[%clk 0:01:50.8]}
30... Nc5 {[%clk 0:01:02.7]} 31. Qb8 {[%clk 0:01:43.1]} 31... Ne4 {[%clk
0:00:54.7]} 32. Ne3 {[%clk 0:01:42.3]} 32... Nc3 {[%clk 0:00:54.4]} 33. Nf5
{[%clk 0:01:33.2]} 33... Qd7 {[%clk 0:00:54.2]} 34. e6 {[%clk 0:01:07.7]} 34...
fxe6 {[%clk 0:00:26.6]} 35. Nxg7 {[%clk 0:01:07]} 35... Kxg7 {[%clk 0:00:28.4]}
36. Ne5 {[%clk 0:01:05.8]} 36... Qxb5 {[%clk 0:00:29.1]} 37. Qc8 {[%clk
0:00:46.7]} 1-0